bitfinex-derivatives/quotes_BTCF0:USTF0_20250324
["timestamp","ask_amount","ask_price","bid_price","bid_amount"]
[1742786831441,0.00017358,86432.0,86431.0,0.4774969]
[1742786831724,0.00017358,86432.0,86431.0,0.5967969]
[1742786832233,8e-05,86434.0,86433.0,0.1156942]
[1742786832534,0.05918,86434.0,86433.0,0.1166542]
[1742786833331,0.0601,86434.0,86433.0,0.1166542]
[1742786833525,0.05918,86434.0,86433.0,0.1166542]
[1742786834127,0.0601,86434.0,86433.0,0.1166542]
[1742786835235,0.05918,86434.0,86433.0,0.1166542]
[1742786836432,0.05918,86434.0,86433.0,0.00096]
[1742786836632,0.46976868,86434.0,86433.0,0.00096]
[1742786836931,0.1156972,86431.0,86430.0,0.1156976]
[1742786837234,0.00096001,86431.0,86429.0,0.1156994]
[1742786837426,0.1752982,86430.0,86429.0,0.00092]
[1742786837625,0.35131408,86430.0,86429.0,0.00092]
[1742786838629,0.3628531,86430.0,86429.0,0.00092]
[1742786839834,0.35131408,86430.0,86429.0,0.1166195]
[1742786840024,0.35131408,86430.0,86429.0,0.00092]
[1742786841028,0.36257609,86430.0,86429.0,0.00092]
[1742786841235,0.1157169,86416.0,86403.0,0.3608]
[1742786841440,0.0578627,86410.0,86403.0,0.3608]
[1742786841738,0.115733,86404.0,86403.0,0.0006]
[1742786841932,0.1157384,86400.0,86394.0,0.3608]
[1742786842134,0.1157451,86395.0,86394.0,0.3608]
[1742786842338,0.1167451,86395.0,86394.0,0.3614]
[1742786842638,0.12821401,86395.0,86394.0,0.3614]
[1742786842940,0.12821401,86395.0,86394.0,0.0006]
[1742786843129,0.1167481,86395.0,86391.0,0.0578746]
[1742786843330,0.1167481,86395.0,86394.0,0.1157464]
[1742786843632,0.12648316,86404.0,86402.0,0.1157357]
[1742786843835,0.3608,86406.0,86402.0,0.1157357]
[1742786843836,0.87969358,86403.0,86402.0,0.1157357]
[1742786844036,1.11482798,86403.0,86402.0,0.1163357]
[1742786844233,0.99909358,86403.0,86402.0,0.1163357]
[1742786844429,1.11484168,86403.0,86402.0,0.1163357]
[1742786844830,1.00509358,86403.0,86402.0,0.1740357]
[1742786845029,0.88569358,86403.0,86402.0,0.1740357]
[1742786845630,0.00681358,86403.0,86402.0,0.1740357]
[1742786845836,0.00617358,86403.0,86402.0,0.1740357]
[1742786846240,0.12190798,86403.0,86402.0,0.0583]
[1742786846426,0.35772537,86403.0,86402.0,0.0583]
[1742786846630,0.35772537,86403.0,86402.0,0.0006]
[1742786846930,0.35672537,86403.0,86402.0,0.0006]
[1742786847427,0.35672537,86403.0,86384.0,0.0588]
[1742786847428,0.1157464,86394.0,86384.0,0.0588]
[1742786847632,0.1157464,86394.0,86377.0,0.4203]
[1742786847633,0.1157518,86390.0,86389.0,0.0006]
[1742786847936,0.1165518,86390.0,86389.0,0.0006]
[1742786848237,0.1165518,86390.0,86386.0,0.11593068]
[1742786848238,0.1157558,86387.0,86386.0,0.11593068]
[1742786848536,0.1165958,86387.0,86386.0,0.11657068]
[1742786848934,0.11659882,86387.0,86386.0,0.11657068]
[1742786849133,0.12036,86387.0,86386.0,0.11657068]
[1742786849640,0.12036,86387.0,86386.0,0.17807068]
[1742786850042,0.12336,86387.0,86386.0,0.17807068]
[1742786850336,0.12536,86387.0,86386.0,0.17807068]
[1742786851831,0.12436,86387.0,86386.0,0.17807068]
[1742786852527,0.18646,86387.0,86386.0,0.17807068]
[1742786856341,0.12536,86387.0,86386.0,0.17807068]
[1742786857338,0.18496,86387.0,86386.0,0.17807068]
[1742786858147,0.3007158,86387.0,86386.0,0.17807068]
[1742786858344,0.41647462,86387.0,86386.0,0.06231358]
[1742786858554,0.35641882,86387.0,86386.0,0.17807068]
[1742786858750,0.47217462,86387.0,86386.0,0.06231358]
[1742786859148,0.48081972,86387.0,86386.0,0.17807068]
[1742786859743,0.24111882,86387.0,86386.0,0.17807068]
[1742786860247,0.12536,86387.0,86386.0,0.17807068]
[1742786860940,0.18286,86387.0,86386.0,0.17807068]
[1742786861138,0.18406,86387.0,86386.0,0.17807068]
[1742786862449,0.2998158,86387.0,86386.0,0.17807068]
[1742786863843,0.18406,86387.0,86386.0,0.17807068]
[1742786865149,0.2998158,86387.0,86386.0,0.17807068]
[1742786866746,0.00584,86387.0,86386.0,0.17807068]
[1742786866949,0.005,86387.0,86386.0,0.19289943]
[1742786868144,0.003,86387.0,86386.0,0.19289943]
[1742786868350,0.0038,86387.0,86386.0,0.19289943]
[1742786868751,0.0603,86387.0,86386.0,0.19289943]
[1742786869056,0.06114,86387.0,86386.0,0.19289943]
[1742786869252,0.00184,86387.0,86386.0,0.19289943]
[1742786869442,0.003,86387.0,86386.0,0.19289943]
[1742786869642,0.002,86387.0,86386.0,0.19289943]
[1742786869950,0.12176,86387.0,86386.0,0.19289943]
[1742786870453,0.004,86387.0,86386.0,0.19289943]
[1742786870959,8e-05,86388.0,86387.0,0.1157558]
[1742786871255,8e-05,86388.0,86387.0,0.1163558]
[1742786871457,0.00088,86388.0,86387.0,0.24778455]
[1742786871659,0.00092,86388.0,86387.0,0.24778455]
[1742786873558,0.00192,86388.0,86387.0,0.24778455]
[1742786874060,0.00208,86388.0,86387.0,0.24778455]
[1742786874251,0.00108,86388.0,86387.0,0.24778455]
[1742786874458,0.00208,86388.0,86387.0,0.24778455]
[1742786874656,0.002,86388.0,86387.0,0.24778455]
[1742786874856,0.11590898,86403.0,86402.0,0.1157357]
[1742786875053,0.11678898,86403.0,86402.0,0.4772157]
[1742786875248,0.17428898,86403.0,86402.0,0.4772157]
[1742786875452,0.17428898,86403.0,86402.0,0.5979157]
[1742786876751,0.0578499,86429.0,86414.0,0.0578598]
[1742786876959,0.0596,86429.0,86416.0,0.4765169]
[1742786877160,0.0575,86428.0,86416.0,0.4771569]
[1742786877464,0.1760912,86427.0,86416.0,0.5978569]
[1742786877762,0.1157055,86425.0,86423.0,0.1157076]
[1742786877958,0.00100001,86424.0,86423.0,0.4771476]
[1742786878163,0.00100001,86424.0,86423.0,0.5915476]
[1742786878360,0.0004,86424.0,86423.0,0.5915476]
[1742786879758,0.0024,86424.0,86423.0,0.5915476]
[1742786881765,0.0024,86424.0,86423.0,0.9998476]
[1742786882451,0.0024,86424.0,86423.0,1.1180476]
[1742786884574,0.0024,86424.0,86423.0,0.9998476]
[1742786884867,0.0024,86424.0,86423.0,0.9419476]
[1742786884868,0.0568,86424.0,86423.0,0.9419476]
[1742786885064,0.113,86424.0,86423.0,0.9419476]
[1742786885763,0.0568,86424.0,86423.0,0.9419476]
[1742786885969,0.0024,86424.0,86423.0,0.9419476]
[1742786886164,0.0024,86424.0,86423.0,1.0603876]
[1742786890870,0.0606,86424.0,86423.0,1.0603876]
[1742786892069,0.0606,86424.0,86423.0,0.9419476]
[1742786892464,0.0606,86424.0,86423.0,0.9992476]
[1742786894268,0.0606,86424.0,86423.0,0.88354]
[1742786894469,0.0606,86424.0,86423.0,0.82624]
[1742786894470,0.2858062,86424.0,86423.0,0.82624]
[1742786894671,0.06120001,86424.0,86423.0,0.9419476]
[1742786894867,0.0606,86424.0,86423.0,0.9419476]
[1742786895171,0.0024,86424.0,86423.0,0.9419476]
[1742786895361,0.0024,86424.0,86423.0,0.9963476]
[1742786895566,0.0592,86424.0,86423.0,0.9963476]
[1742786896675,0.2289062,86424.0,86423.0,0.8854476]
[1742786896869,0.28410621,86424.0,86423.0,0.9430476]
[1742786898473,0.16840001,86424.0,86423.0,0.9430476]
[1742786898677,0.16840001,86424.0,86423.0,0.9979476]
[1742786899073,0.28410621,86424.0,86423.0,0.9979476]
[1742786899377,0.28410621,86424.0,86423.0,0.5347476]
[1742786905278,0.39981547,86424.0,86423.0,0.36144]
[1742786905480,0.39981547,86424.0,86423.0,0.00064]
[1742786905689,0.1157156,86417.0,86416.0,0.3608]
[1742786905879,0.23447561,86417.0,86416.0,0.00068]
[1742786906587,0.46018487,86417.0,86416.0,0.00068]
[1742786906771,0.46118487,86417.0,86416.0,0.00068]
[1742786910484,0.1157344,86403.0,86402.0,0.3608]
[1742786910790,0.1157344,86403.0,86386.0,0.3608]
[1742786910791,0.0578739,86393.0,86390.0,0.0578753]
[1742786910997,0.1736259,86391.0,86390.0,0.1164314]
[1742786911185,0.11920001,86391.0,86390.0,0.1164314]
[1742786911489,0.23400001,86391.0,86390.0,0.1164314]
[1742786911690,0.23100001,86391.0,86390.0,0.2256314]
[1742786911887,0.22800001,86391.0,86390.0,0.2256314]
[1742786912695,0.22800001,86391.0,86390.0,0.2316314]
[1742786913085,0.22800001,86391.0,86390.0,0.1774318]
[1742786913385,0.05904001,86391.0,86390.0,0.1774318]
[1742786913584,0.00017358,86399.0,86398.0,0.1157411]
[1742786913786,0.11837358,86399.0,86398.0,0.1163411]
[1742786913986,0.11837358,86399.0,86398.0,0.1713411]
[1742786914288,0.11837358,86399.0,86398.0,0.1707411]
[1742786914887,0.17547358,86399.0,86398.0,0.1707411]
[1742786915091,0.00017358,86399.0,86398.0,0.1707411]
[1742786915288,0.00217358,86399.0,86398.0,0.1707411]
[1742786915487,0.00517358,86399.0,86398.0,0.1707411]
[1742786916497,0.00517358,86399.0,86398.0,0.1717411]
[1742786916498,0.05927358,86399.0,86398.0,0.1717411]
[1742786916889,0.05727358,86399.0,86398.0,0.1717411]
[1742786917599,0.05827358,86399.0,86398.0,0.1717411]
[1742786918498,0.05827358,86399.0,86398.0,0.1707411]
[1742786918694,0.05927358,86399.0,86398.0,0.1707411]
[1742786919398,0.06023359,86399.0,86398.0,0.1713411]
[1742786919692,0.17597329,86399.0,86398.0,0.1713411]
[1742786920095,0.23277329,86399.0,86398.0,0.1713411]
[1742786920298,0.23277329,86399.0,86398.0,0.0556]
[1742786920487,0.1157518,86390.0,86389.0,0.0559]
[1742786920690,0.1157518,86390.0,86376.0,0.7691]
[1742786920691,0.0578785,86387.0,86384.0,0.0553]
[1742786920997,0.1157585,86385.0,86384.0,0.1138593]
[1742786921191,0.11687851,86385.0,86384.0,0.1717398]
[1742786921800,0.34543331,86385.0,86384.0,0.1717398]
[1742786922396,0.34343331,86385.0,86384.0,0.1717398]
[1742786923196,0.23067481,86385.0,86384.0,0.1717398]
[1742786923397,0.05672001,86385.0,86384.0,0.1717398]
[1742786923591,0.0556,86385.0,86384.0,0.2295398]
[1742786923786,0.1182,86387.0,86386.0,0.1157571]
[1742786924095,0.11940001,86387.0,86386.0,0.1164371]
[1742786924301,0.00120001,86387.0,86386.0,0.1164371]
[1742786924521,0.1182,86388.0,86387.0,0.1157558]
[1742786924727,0.11932001,86388.0,86387.0,0.1163558]
[1742786924924,0.11932001,86388.0,86387.0,0.2264558]
[1742786925123,0.1182,86388.0,86387.0,0.2264558]
[1742786925322,0.11932001,86388.0,86387.0,0.2264558]
[1742786925636,0.11940001,86388.0,86387.0,0.2264558]
[1742786926411,0.23515451,86388.0,86387.0,0.2264558]
[1742786926597,0.29145451,86388.0,86387.0,0.2264558]
[1742786926997,0.29245451,86388.0,86387.0,0.2264558]
[1742786927794,0.29445451,86388.0,86387.0,0.2264558]
[1742786929595,0.17870001,86388.0,86387.0,0.2264558]
[1742786929800,0.12240001,86388.0,86387.0,0.2264558]
[1742786930002,0.12128,86388.0,86387.0,0.2264558]
[1742786930204,0.12240001,86388.0,86387.0,0.2264558]
[1742786930502,0.23815451,86388.0,86387.0,0.2264558]
[1742786931806,0.12240001,86388.0,86387.0,0.2264558]
[1742786932606,0.00420001,86388.0,86387.0,0.2264558]
[1742786932809,0.00308,86388.0,86387.0,0.2264558]
[1742786933696,0.05830001,86388.0,86387.0,0.2264558]
[1742786936006,1e-08,86388.0,86387.0,0.2264558]
[1742786936205,0.0562,86398.0,86397.0,0.1157424]
[1742786936408,0.057,86398.0,86397.0,0.1163824]
[1742786936609,0.1727411,86398.0,86397.0,0.1163824]
[1742786936815,0.1727411,86398.0,86397.0,0.2258824]
[1742786937005,0.057,86398.0,86397.0,0.2258824]
[1742786937611,0.061,86398.0,86397.0,0.2258824]
[1742786937806,0.0642,86398.0,86397.0,0.2258824]
[1742786938011,0.065,86398.0,86397.0,0.23748916]
[1742786939308,0.41468518,86398.0,86397.0,0.05704]
[1742786939606,0.41468518,86398.0,86397.0,0.0564]
[1742786939919,0.41468518,86398.0,86397.0,0.1721424]
[1742786940210,0.29894408,86398.0,86397.0,0.1727424]
[1742786940400,0.35774408,86398.0,86397.0,0.1727424]
[1742786941004,0.242,86398.0,86397.0,0.1727424]
[1742786941702,0.1832,86398.0,86397.0,0.1727424]
[1742786943407,0.065,86398.0,86397.0,0.1727424]
[1742786943610,0.0642,86398.0,86397.0,0.1727424]
[1742786943915,0.06504,86398.0,86397.0,0.1727424]
[1742786944415,0.0642,86398.0,86397.0,0.1727424]
[1742786944617,0.06504,86398.0,86397.0,0.1727424]
[1742786945115,0.12354,86398.0,86397.0,0.1727424]
[1742786945514,0.2392811,86398.0,86397.0,0.1727424]
[1742786945714,0.35502518,86398.0,86397.0,0.0006]
[1742786946014,0.1157598,86384.0,86382.0,0.00017358]
[1742786946222,0.23491981,86384.0,86382.0,0.00017358]
[1742786946706,0.35066389,86384.0,86383.0,0.00114305]
[1742786946911,0.71146389,86384.0,86383.0,0.00046305]
[1742786947218,0.76856389,86384.0,86383.0,0.11622425]
[1742786947417,0.76856389,86384.0,86383.0,0.11682425]
[1742786948018,0.76956389,86384.0,86383.0,0.11682425]
[1742786948211,0.76956389,86384.0,86383.0,0.00106305]
[1742786948612,0.76956389,86384.0,86383.0,0.00046305]
[1742786948822,0.65380409,86384.0,86383.0,0.11622425]
[1742786949019,0.76956389,86384.0,86383.0,0.16982425]
[1742786949218,0.82686389,86384.0,86383.0,0.16982425]
[1742786950708,0.59290409,86384.0,86383.0,0.16982425]
[1742786950915,0.53580409,86384.0,86383.0,0.22282425]
[1742786951218,0.29320409,86384.0,86383.0,0.22282425]
[1742786952221,0.40896389,86384.0,86383.0,0.22282425]
[1742786952436,0.46316389,86384.0,86383.0,0.22282425]
[1742786952817,0.46316389,86384.0,86383.0,0.16982425]
[1742786953517,0.34740409,86384.0,86383.0,0.16982425]
[1742786953722,0.34740409,86384.0,86383.0,0.22792425]
[1742786954217,0.46316389,86384.0,86383.0,0.22792425]
[1742786954423,0.34740409,86384.0,86383.0,0.22792425]
[1742786957618,0.22920409,86384.0,86383.0,0.22792425]
[1742786957823,0.0578772,86388.0,86383.0,0.22792425]
[1742786957824,0.4081,86409.0,86394.0,0.1157464]
[1742786958127,0.1182,86402.0,86394.0,0.1163464]
[1742786958626,0.00017358,86399.0,86398.0,0.1157411]
[1742786958825,0.00017358,86399.0,86398.0,0.1163411]
[1742786959234,0.00017358,86399.0,86398.0,0.2290411]
[1742786959824,8e-05,86403.0,86402.0,0.1157357]
[1742786960021,8e-05,86403.0,86402.0,0.1163357]
[1742786960213,0.0538,86408.0,86407.0,0.115729]
[1742786960417,0.05456,86408.0,86407.0,0.116409]
[1742786960919,0.05456,86408.0,86407.0,0.1279647]
[1742786961119,0.00025358,86416.0,86412.0,0.0578609]
[1742786961319,0.00048,86424.0,86423.0,0.1157076]
[1742786961620,0.00100001,86424.0,86423.0,0.1157076]
[1742786962026,0.00100001,86424.0,86423.0,0.1165076]
[1742786962327,0.00100001,86424.0,86423.0,0.2265076]
[1742786962518,0.00300001,86424.0,86423.0,0.2265076]
[1742786964326,0.00600001,86424.0,86423.0,0.2265076]
[1742786965127,0.00600001,86424.0,86423.0,0.5873076]
[1742786972430,0.00600001,86424.0,86423.0,0.2265076]
[1742786974839,0.12170621,86424.0,86423.0,0.1108]
[1742786975030,0.12170621,86424.0,86423.0,0.1710076]
[1742786975031,0.23741547,86424.0,86423.0,0.1710076]
[1742786975226,0.12170927,86424.0,86423.0,0.1710076]
[1742786975735,0.00600001,86424.0,86423.0,0.2227076]
[1742786977537,0.10870001,86424.0,86423.0,0.2227076]
[1742786978939,0.10870001,86424.0,86423.0,0.1710076]
[1742786980537,0.10870001,86424.0,86423.0,0.2224076]
[1742786982341,0.22440621,86424.0,86423.0,0.2224076]
[1742786982542,0.10870001,86424.0,86423.0,0.2224076]
[1742786984140,0.22682001,86424.0,86423.0,0.2224076]
[1742786985931,0.34252621,86424.0,86423.0,0.2224076]
[1742786986132,0.22682001,86424.0,86423.0,0.2224076]
[1742786990246,0.17502001,86424.0,86423.0,0.2224076]
[1742786991347,0.00600001,86424.0,86423.0,0.2224076]
[1742786992939,0.05870001,86424.0,86423.0,0.2224076]
[1742786993143,0.0581,86424.0,86423.0,0.2224076]
[1742786995051,0.0054,86424.0,86423.0,0.2224076]
[1742786996640,0.0578,86424.0,86423.0,0.2224076]
[1742786997046,0.05852,86424.0,86423.0,0.2224076]
[1742786999250,0.0578,86424.0,86423.0,0.2224076]
[1742787001054,0.00017358,86432.0,86429.0,0.0578497]
[1742787001357,0.00089358,86432.0,86431.0,0.4764969]
[1742787001660,0.00089358,86432.0,86431.0,0.1164169]
[1742787001848,0.00089358,86432.0,86431.0,0.23080998]
[1742787002658,0.00289358,86432.0,86431.0,0.23080998]
[1742787003044,0.05539358,86432.0,86431.0,0.23080998]
[1742787003258,0.05639358,86432.0,86431.0,0.23080998]
[1742787003750,0.00389358,86432.0,86431.0,0.23080998]
[1742787003946,0.00217358,86432.0,86431.0,0.23080998]
[1742787004256,0.00317358,86432.0,86431.0,0.23080998]
[1742787005554,0.0529,86454.0,86441.0,0.0578415]
[1742787005750,0.0504,86451.0,86450.0,0.1156714]
[1742787005953,0.0512,86451.0,86450.0,0.1163914]
[1742787007762,0.28354323,86451.0,86450.0,0.00072]
[1742787007956,0.28354323,86451.0,86442.0,0.00017358]
[1742787007957,0.1156808,86443.0,86442.0,0.00017358]
[1742787008161,0.11868001,86443.0,86442.0,0.11585568]
[1742787008359,0.23436081,86443.0,86442.0,0.11661568]
[1742787008560,0.51083394,86443.0,86442.0,0.11661568]
[1742787008859,0.52251233,86443.0,86442.0,0.11585568]
[1742787009158,0.51083394,86443.0,86442.0,0.11657568]
[1742787009461,0.51083394,86443.0,86442.0,0.11585568]
[1742787009647,0.51083394,86443.0,86442.0,0.00089358]
[1742787009853,0.1157049,86425.0,86420.0,0.27146702]
[1742787010054,0.1157049,86425.0,86424.0,0.32006646]
[1742787010055,0.2345049,86425.0,86424.0,0.32006646]
[1742787010254,0.2345049,86425.0,86424.0,0.20436026]
[1742787010255,0.4772249,86425.0,86424.0,0.20436026]
[1742787010563,0.71101283,86425.0,86424.0,0.20436026]
[1742787010760,0.71101283,86425.0,86424.0,0.00076]
[1742787010958,0.71101283,86425.0,86418.0,0.0578569]
[1742787010959,0.1157156,86417.0,86416.0,0.00017358]
[1742787011160,0.1157156,86417.0,86416.0,0.00085358]
[1742787011161,0.5952756,86417.0,86416.0,0.00085358]
[1742787011757,0.23446793,86417.0,86416.0,0.17107048]
[1742787012056,0.00068,86417.0,86416.0,0.22097048]
[1742787012263,0.11808,86418.0,86417.0,0.1157156]
[1742787012452,0.11808,86418.0,86417.0,0.1163156]
[1742787012653,0.11816,86418.0,86417.0,0.2249156]
[1742787013048,0.00076,86418.0,86417.0,0.2249156]
[1742787013254,0.11808,86427.0,86426.0,0.1157036]
[1742787013459,0.11808,86427.0,86426.0,0.1163036]
[1742787013667,0.17088,86432.0,86431.0,0.1156969]
[1742787013853,0.17156,86432.0,86431.0,0.1162969]
[1742787014055,0.17156,86432.0,86431.0,0.1169769]
[1742787014255,0.17156,86432.0,86431.0,0.1163769]
[1742787014458,0.17156,86432.0,86431.0,0.2249769]
[1742787015663,0.2872555,86432.0,86431.0,0.00068]
[1742787015859,0.1157062,86424.0,86423.0,0.1658076]
[1742787016056,0.5953462,86424.0,86423.0,0.1664876]
[1742787016258,0.2345462,86424.0,86423.0,0.00068]
[1742787016568,0.2345462,86424.0,86417.0,0.1157156]
[1742787016569,0.1157143,86418.0,86417.0,0.1157156]
[1742787016763,0.1157156,86417.0,86416.0,0.00093358]
[1742787016963,0.1157156,86417.0,86416.0,0.00153358]
[1742787016964,0.3431556,86417.0,86416.0,0.00153358]
[1742787017261,0.45886486,86417.0,86416.0,0.00077358]
[1742787017667,0.45886486,86417.0,86416.0,0.05087358]
[1742787019766,0.05426,86417.0,86416.0,0.16659048]
[1742787020068,0.11812,86425.0,86424.0,0.1157062]
[1742787020363,0.00076,86425.0,86424.0,0.1163462]
[1742787020574,0.11808,86428.0,86427.0,0.1157022]
[1742787020865,0.11876,86428.0,86427.0,0.1163022]
[1742787021854,0.11876,86428.0,86427.0,0.1693022]
[1742787022661,0.00068,86428.0,86427.0,0.1693022]
[1742787022862,0.11808,86428.0,86427.0,0.1693022]
[1742787023061,0.11876,86428.0,86427.0,0.1693022]
[1742787023270,0.22136,86428.0,86427.0,0.1693022]
[1742787024169,0.17016,86428.0,86427.0,0.2222022]
[1742787024556,0.05208,86428.0,86427.0,0.2222022]
[1742787024967,0.0514,86428.0,86427.0,0.2222022]
[1742787025167,0.05208,86428.0,86427.0,0.2222022]
[1742787025367,0.10508,86428.0,86427.0,0.2222022]
[1742787025561,0.2207809,86428.0,86427.0,0.2222022]
[1742787026562,0.10508,86428.0,86427.0,0.2222022]
[1742787026762,0.05208,86428.0,86427.0,0.2758022]
[1742787026969,8e-05,86429.0,86428.0,0.1157009]
[1742787027271,8e-05,86429.0,86428.0,0.1163009]
[1742787027473,0.00076,86429.0,86428.0,0.2105009]
[1742787029667,0.00076,86429.0,86428.0,0.2569009]
[1742787030674,8e-05,86439.0,86432.0,0.0578474]
[1742787030878,0.00068,86436.0,86435.0,0.173537]
[1742787031171,8e-05,86437.0,86436.0,0.1156902]
[1742787031372,8e-05,86447.0,86446.0,0.1156768]
[1742787031571,0.0488,86450.0,86449.0,0.1156728]
[1742787031876,0.0488,86450.0,86449.0,0.1163528]
[1742787032467,0.0488,86450.0,86449.0,0.2120528]
[1742787032666,0.0488,86450.0,86449.0,0.00068]
[1742787032667,0.28086586,86450.0,86449.0,0.00068]
[1742787032867,0.32576586,86450.0,86449.0,0.00068]
[1742787033073,0.69656586,86450.0,86449.0,0.00068]
[1742787033264,0.1156808,86443.0,86442.0,0.0492]
[1742787033462,0.2344408,86443.0,86442.0,0.1655621]
[1742787033661,0.2344408,86443.0,86442.0,0.04988]
[1742787033866,0.1156821,86442.0,86435.0,0.4083]
[1742787034061,0.1156821,86442.0,86441.0,0.00085358]
[1742787034062,0.2106621,86442.0,86441.0,0.00085358]
[1742787034268,0.5714621,86442.0,86441.0,0.00085358]
[1742787034670,0.5714621,86442.0,86410.0,0.20360026]
[1742787034671,0.1157015,86428.0,86410.0,0.20360026]
[1742787034871,0.25928,86427.0,86426.0,0.1157036]
[1742787035172,0.16518,86427.0,86426.0,0.1157036]
[1742787035470,0.3608,86453.0,86450.0,0.1156714]
[1742787035769,0.3608,86453.0,86451.0,0.1156701]
[1742787035770,0.0471,86452.0,86451.0,0.1156701]
[1742787036164,0.0471,86452.0,86451.0,0.2108701]
[1742787036368,0.00048,86456.0,86455.0,0.1156647]
[1742787037174,0.0447,86466.0,86465.0,0.1156514]
[1742787037564,0.16035,86466.0,86465.0,0.1156514]
[1742787038873,0.115654,86463.0,86462.0,0.3608]
[1742787039069,0.1156634,86456.0,86455.0,0.5214643]
[1742787039372,0.1735019,86454.0,86453.0,0.1156672]
[1742787039568,0.1735019,86454.0,86453.0,0.00064]
[1742787039569,0.1741819,86454.0,86453.0,0.00064]
[1742787039770,0.0578337,86453.0,86451.0,0.1156688]
[1742787039962,0.1156735,86450.0,86449.0,0.1156721]
[1742787040164,0.1163535,86450.0,86449.0,0.1163521]
[1742787040460,0.09358,86450.0,86449.0,0.1163521]
[1742787040660,0.09358,86450.0,86449.0,0.00068]
[1742787040661,0.2085714,86450.0,86449.0,0.00068]
[1742787040865,0.1156754,86447.0,86446.0,0.1156758]
[1742787041068,0.00076,86447.0,86446.0,0.1156758]
[1742787041272,0.00076,86447.0,86446.0,0.1622558]
[1742787041572,0.00011506,86455.0,86454.0,0.1156661]
[1742787041772,0.11883506,86455.0,86454.0,0.1162661]
[1742787041962,0.00079506,86455.0,86454.0,0.1162661]
[1742787042162,0.00011506,86455.0,86454.0,0.1162661]
[1742787042971,0.00011506,86455.0,86454.0,0.1606661]
[1742787046969,0.00011506,86455.0,86454.0,0.0006]
[1742787047270,0.0004,86488.0,86471.0,0.1156433]
[1742787047475,0.0464,86484.0,86471.0,0.4770433]
[1742787047678,0.0004,86472.0,86471.0,0.4770433]
[1742787050769,0.0004,86472.0,86471.0,0.5731433]
[1742787052477,0.0004,86472.0,86471.0,0.1650433]
[1742787052673,0.27796703,86472.0,86471.0,0.0006]
[1742787052872,0.1156474,86468.0,86467.0,0.0474]
[1742787053072,0.2344474,86468.0,86467.0,0.0474]
[1742787053272,0.2344474,86468.0,86467.0,0.048]
[1742787053581,0.35009778,86468.0,86467.0,0.0006]
[1742787053774,0.1156688,86452.0,86451.0,0.0474]
[1742787054085,0.2337088,86452.0,86451.0,0.0474]
[1742787054378,0.1735186,86445.0,86444.0,0.1156795]
[1742787054576,0.2915586,86445.0,86444.0,0.1156795]
[1742787055178,0.29155099,86445.0,86444.0,0.1156795]
[1742787058077,0.23371179,86445.0,86444.0,0.1156795]
[1742787058885,0.23371179,86445.0,86444.0,0.1617795]
[1742787059486,0.3502699,86445.0,86444.0,0.1626595]
[1742787060583,0.3502699,86445.0,86444.0,0.04698]
[1742787060778,0.3502699,86445.0,86444.0,0.0461]
[1742787061379,0.3502699,86445.0,86444.0,0.0467]
[1742787061585,0.3502699,86445.0,86444.0,0.0461]
[1742787061975,0.1156888,86437.0,86436.0,0.00017347]
[1742787062174,0.23460881,86437.0,86436.0,0.00017347]
[1742787062586,8e-05,86446.0,86445.0,0.1156781]
[1742787062778,0.11816,86467.0,86452.0,0.1156688]
[1742787063079,0.1159205,86453.0,86452.0,0.36152]
[1742787063281,0.11670496,86453.0,86452.0,0.4771888]
[1742787064278,0.23237236,86453.0,86452.0,0.4771888]
[1742787064478,0.11670496,86453.0,86452.0,0.4771888]
[1742787065472,0.23237236,86453.0,86452.0,0.4771888]
[1742787065772,0.1156768,86446.0,86445.0,0.4083]
[1742787065982,0.2343568,86446.0,86445.0,0.4089]
[1742787066172,0.1156888,86437.0,86431.0,0.00046279]
[1742787066382,0.2345288,86437.0,86433.0,0.115693]
[1742787066577,0.2345288,86437.0,86436.0,0.00097347]
[1742787066778,0.2345288,86437.0,86436.0,0.11666367]
[1742787066979,0.28321982,86437.0,86436.0,0.11666367]
[1742787067585,0.44390862,86437.0,86436.0,0.00097347]
[1742787067784,0.44390862,86437.0,86436.0,0.00017347]
[1742787067980,0.44390862,86437.0,86410.0,0.20360026]
[1742787067981,0.48701095,86437.0,86410.0,0.20360026]
[1742787068180,0.1157089,86422.0,86421.0,0.00084]
[1742787068376,0.1157169,86416.0,86410.0,0.20360026]
[1742787068583,0.4773169,86416.0,86415.0,0.00106288]
[1742787068884,0.59301947,86416.0,86415.0,0.00106288]
[1742787069089,0.59301947,86416.0,86415.0,0.00114288]
[1742787069390,0.1157277,86408.0,86407.0,0.00017357]
[1742787069581,0.52320257,86416.0,86415.0,0.1157183]
[1742787069776,0.52320257,86416.0,86410.0,0.1157244]
[1742787069777,0.1157227,86412.0,86410.0,0.1157244]
[1742787069982,0.1157227,86412.0,86410.0,0.0006]
[1742787069983,0.2185855,86411.0,86410.0,0.0006]
[1742787070177,0.1157277,86408.0,86407.0,0.00017357]
[1742787070387,0.5955277,86408.0,86407.0,0.00077357]
[1742787070788,0.0578672,86403.0,86385.0,0.58123133]
[1742787070993,0.4765384,86400.0,86399.0,0.34047674]
[1742787071289,0.4765384,86400.0,86385.0,0.58123133]
[1742787071290,0.1157464,86394.0,86385.0,0.58123133]
[1742787071483,0.1157571,86386.0,86385.0,0.58123133]
[1742787071793,0.48060001,86386.0,86385.0,0.1157585]
[1742787071992,0.5964371,86386.0,86385.0,0.1163985]
[1742787072291,0.71217851,86386.0,86385.0,0.00064]
[1742787072592,0.1157598,86384.0,86383.0,0.11622345]
[1742787072894,0.11695981,86384.0,86383.0,0.00106305]
[1742787073082,0.11595981,86384.0,86383.0,0.04946305]
[1742787073385,0.23171997,86384.0,86383.0,0.05006305]
[1742787073590,0.23171997,86384.0,86383.0,0.04946305]
[1742787073790,0.23171997,86384.0,86383.0,0.16522425]
[1742787073995,0.23171997,86384.0,86383.0,0.16582425]
[1742787074384,0.23171997,86384.0,86383.0,0.05006305]
[1742787075091,0.23171997,86384.0,86383.0,0.04946305]
[1742787075393,0.23171997,86384.0,86383.0,0.05046305]
[1742787076496,0.23171997,86384.0,86383.0,0.00146305]
[1742787076891,0.28071997,86384.0,86383.0,0.00146305]
[1742787081193,0.1157679,86378.0,86360.0,0.0578956]
[1742787081397,0.1157679,86378.0,86352.0,0.4662013]
[1742787081398,0.23528791,86378.0,86367.0,0.04856314]
[1742787081598,0.1157813,86368.0,86367.0,0.04856314]
[1742787081799,0.23526131,86368.0,86367.0,0.04916314]
[1742787082495,0.34902415,86368.0,86367.0,0.04916314]
[1742787082795,0.34902415,86368.0,86367.0,0.05256314]
[1742787082996,0.39542415,86368.0,86367.0,0.00446314]
[1742787083196,0.115792,86360.0,86359.0,0.00017368]
[1742787083393,0.59095201,86360.0,86359.0,0.00017368]
[1742787083585,0.58895201,86360.0,86359.0,0.00017368]